{"text_format":"3","workbook":"xlsx","n_sheets":2,"sheets":["list","data"],"not_rendered":{"external_links":3,"defined_names":9},"read":"whole","date_system":"1900"}

{"sheet":"list","index":0,"n_rows":86,"n_cols":16,"rows_kept":86}
["№","Фамилия","Имя","Отчество","Пол","Участник с ОВЗ","Класс","Класс участия","Балл","Макс. Балл","Статус","Призер МЭ прошлого года","Учитель","Место работы учителя","Профиль/Направление","Виды практик"]
[{"$f":"'[1]Протокол ШЭ ВОШ по предмету ЛИТ'!A2","v":1},"Диярова ","Зарина","Маратовна","ж","нет",5,5,52,60,"победитель",null,"Неизвестная Светлана Николаевна","Муниципальное бюджетное общеобразовательное учреждение \"Многопрофильный лицей №37\" Нижнекамского муниципального района Республики Татарстан","2 - Культура дома, дизайн и технологии","2.1 Ручная обработка швейного изделия или узла"]
[{"$f":"'[1]Протокол ШЭ ВОШ по предмету ЛИТ'!A3","v":2},"Фофонова","Дарья","Артемьевна","ж","нет",5,5,48,60,"победитель",null,"Неизвестная Светлана Николаевна","Муниципальное бюджетное общеобразовательное учреждение \"Многопрофильный лицей №37\" Нижнекамского муниципального района Республики Татарстан","2 - Культура дома, дизайн и технологии","2.1 Ручная обработка швейного изделия или узла"]
[{"$f":"'[1]Протокол ШЭ ВОШ по предмету ЛИТ'!A4","v":3},"Седышев","Далер","Павлович","м","нет",5,5,47,60,"победитель",null,"Магомедов Руслан Гаябекович","Муниципальное бюджетное общеобразовательное учреждение \"Многопрофильный лицей №37\" Нижнекамского муниципального района Республики Татарстан","1 - Техника, технологии и техническое творчество.","1.1 Ручная деревообработка"]
[{"$f":"'[1]Протокол ШЭ ВОШ по предмету ЛИТ'!A5","v":4},"Байгузина","Инзиля","Фагимовна","ж","нет",5,5,42,60,"призер",null,"Неизвестная Светлана Николаевна","Муниципальное бюджетное общеобразовательное учреждение \"Многопрофильный лицей №37\" Нижнекамского муниципального района Республики Татарстан","2 - Культура дома, дизайн и технологии","2.1 Ручная обработка швейного изделия или узла"]
[{"$f":"'[1]Протокол ШЭ ВОШ по предмету ЛИТ'!A6","v":5},"Хуснутдинова","Аиша","Рамилевна","ж","нет",5,5,35,60,"призер",null,"Неизвестная Светлана Николаевна","Муниципальное бюджетное общеобразовательное учреждение \"Многопрофильный лицей №37\" Нижнекамского муниципального района Республики Татарстан","2 - Культура дома, дизайн и технологии","2.1 Ручная обработка швейного изделия или узла"]
[{"$f":"'[1]Протокол ШЭ ВОШ по предмету ЛИТ'!A7","v":6},"Иванова","Ирина","Евгеньевна","ж","нет",5,5,29,60,"участник",null,"Неизвестная Светлана Николаевна","Муниципальное бюджетное общеобразовательное учреждение \"Многопрофильный лицей №37\" Нижнекамского муниципального района Республики Татарстан","2 - Культура дома, дизайн и технологии","2.1 Ручная обработка швейного изделия или узла"]
[{"$f":"'[1]Протокол ШЭ ВОШ по предмету ЛИТ'!A8","v":7},"Шишкина","Ангелина","Олеговна","ж","нет",5,5,27,60,"участник",null,"Неизвестная Светлана Николаевна","Муниципальное бюджетное общеобразовательное учреждение \"Многопрофильный лицей №37\" Нижнекамского муниципального района Республики Татарстан","2 - Культура дома, дизайн и технологии","2.1 Ручная обработка швейного изделия или узла"]
[{"$f":"'[1]Протокол ШЭ ВОШ по предмету ЛИТ'!A9","v":8},"Закирова","Ралина","Рустемовна","ж","нет",5,5,27,60,"участник",null,"Неизвестная Светлана Николаевна","Муниципальное бюджетное общеобразовательное учреждение \"Многопрофильный лицей №37\" Нижнекамского муниципального района Республики Татарстан","2 - Культура дома, дизайн и технологии","2.1 Ручная обработка швейного изделия или узла"]
[{"$f":"'[1]Протокол ШЭ ВОШ по предмету ЛИТ'!A10","v":9},"Байгузина","Айзиля","Фагимовна","ж","нет",5,5,26,60,"участник",null,"Неизвестная Светлана Николаевна","Муниципальное бюджетное общеобразовательное учреждение \"Многопрофильный лицей №37\" Нижнекамского муниципального района Республики Татарстан","2 - Культура дома, дизайн и технологии","2.1 Ручная обработка швейного изделия или узла"]
[{"$f":"'[1]Протокол ШЭ ВОШ по предмету ЛИТ'!A11","v":10},"Исаева","Милана","Сергеевна","ж","нет",5,5,23,60,"участник",null,"Неизвестная Светлана Николаевна","Муниципальное бюджетное общеобразовательное учреждение \"Многопрофильный лицей №37\" Нижнекамского муниципального района Республики Татарстан","2 - Культура дома, дизайн и технологии","2.1 Ручная обработка швейного изделия или узла"]
[{"$f":"'[1]Протокол ШЭ ВОШ по предмету ЛИТ'!A12","v":11},"Лумпова","Светлана","Львовна","ж","нет",5,5,22,60,"участник",null,"Неизвестная Светлана Николаевна","Муниципальное бюджетное общеобразовательное учреждение \"Многопрофильный лицей №37\" Нижнекамского муниципального района Республики Татарстан","2 - Культура дома, дизайн и технологии","2.1 Ручная обработка швейного изделия или узла"]
[{"$f":"'[1]Протокол ШЭ ВОШ по предмету ЛИТ'!A13","v":12},"Ваганов","Ярослав","Евгеньевич","м","нет",5,5,21,60,"участник",null,"Магомедов Руслан Гаябекович","МБОУ \" Многопрофильный лицей 37\" НМР РТ","1 - Техника, технологии и техническое творчество.","1.1 Ручная деревообработка."]
[{"$f":"'[1]Протокол ШЭ ВОШ по предмету ЛИТ'!A14","v":13},"Алиева","Зульфия","Айратовна","ж","нет",5,5,20,60,"участник",null,"Неизвестная Светлана Николаевна","Муниципальное бюджетное общеобразовательное учреждение \"Многопрофильный лицей №37\" Нижнекамского муниципального района Республики Татарстан","2 - Культура дома, дизайн и технологии","2.1 Ручная обработка швейного изделия или узла"]
[{"$f":"'[1]Протокол ШЭ ВОШ по предмету ЛИТ'!A15","v":14},"Щетнева","Валерия","Анатольевна","ж","нет",5,5,19,60,"участник",null,"Неизвестная Светлана Николаевна","Муниципальное бюджетное общеобразовательное учреждение \"Многопрофильный лицей №37\" Нижнекамского муниципального района Республики Татарстан","2 - Культура дома, дизайн и технологии","2.1 Ручная обработка швейного изделия или узла"]
[{"$f":"'[1]Протокол ШЭ ВОШ по предмету ЛИТ'!A16","v":15},"Анисимова","Ева","Игоревна","ж","нет",5,5,17,60,"участник",null,"Неизвестная Светлана Николаевна","Муниципальное бюджетное общеобразовательное учреждение \"Многопрофильный лицей №37\" Нижнекамского муниципального района Республики Татарстан","2 - Культура дома, дизайн и технологии","2.1 Ручная обработка швейного изделия или узла"]
[{"$f":"'[1]Протокол ШЭ ВОШ по предмету ЛИТ'!A17","v":16},"Хилов","Андрей","Анатольевич","м","нет",5,5,17,60,"участник",null,"Магомедов Руслан Гаябекович","Муниципальное бюджетное общеобразовательное учреждение \"Многопрофильный лицей №37\" Нижнекамского муниципального района Республики Татарстан","1 - Техника, технологии и техническое творчество.","1.1 Ручная деревообработка."]
[{"$f":"'[1]Протокол ШЭ ВОШ по предмету ЛИТ'!A18","v":17},"Сосунов","Дмитрий","Андреевич","м","нет",5,5,16,60,"участник",null,"Магомедов Руслан Гаябекович","Муниципальное бюджетное общеобразовательное учреждение \"Многопрофильный лицей №37\" Нижнекамского муниципального района Республики Татарстан","1 - Техника, технологии и техническое творчество.","1.1 Ручная деревообработка."]
[{"$f":"'[1]Протокол ШЭ ВОШ по предмету ЛИТ'!A19","v":18},"Устинов ","Владислав","Дмитриевич","м","нет",5,5,13,60,"участник",null,"Магомедов Руслан Гаябекович","Муниципальное бюджетное общеобразовательное учреждение \"Многопрофильный лицей №37\" Нижнекамского муниципального района Республики Татарстан","1 - Техника, технологии и техническое творчество.","1.1 Ручная деревообработка."]
[{"$f":"'[1]Протокол ШЭ ВОШ по предмету ЛИТ'!A20","v":19},"Юнусов","Алмаз","Рустемович","м","нет",5,5,11,60,"участник",null,"Магомедов Руслан Гаябекович","Муниципальное бюджетное общеобразовательное учреждение \"Многопрофильный лицей №37\" Нижнекамского муниципального района Республики Татарстан","1 - Техника, технологии и техническое творчество.","1.1 Ручная деревообработка."]
[{"$f":"'[1]Протокол ШЭ ВОШ по предмету ЛИТ'!A21","v":20},"Сабиров ","Айнур","Ильнурович","м","нет",5,5,10,60,"участник",null,"Магомедов Руслан Гаябекович","Муниципальное бюджетное общеобразовательное учреждение \"Многопрофильный лицей №37\" Нижнекамского муниципального района Республики Татарстан","1 - Техника, технологии и техническое творчество.","1.1 Ручная деревообработка."]
[{"$f":"'[1]Протокол ШЭ ВОШ по предмету ЛИТ'!A22","v":21},"Галимов","Реналь","Ирекович","м","нет",5,5,10,60,"участник",null,"Магомедов Руслан Гаябекович","Муниципальное бюджетное общеобразовательное учреждение \"Многопрофильный лицей №37\" Нижнекамского муниципального района Республики Татарстан","1 - Техника, технологии и техническое творчество.","1.1 Ручная деревообработка."]
[{"$f":"'[1]Протокол ШЭ ВОШ по предмету ЛИТ'!A23","v":22},"Миндубаев","Айназ","Марселевич","м","нет",5,5,10,60,"участник",null,"Магомедов Руслан Гаябекович","Муниципальное бюджетное общеобразовательное учреждение \"Многопрофильный лицей №37\" Нижнекамского муниципального района Республики Татарстан","1 - Техника, технологии и техническое творчество.","1.1 Ручная деревообработка."]
[{"$f":"'[1]Протокол ШЭ ВОШ по предмету ЛИТ'!A24","v":23},"Ильясов","Ислам","Фанилевич","м","нет",5,5,9,60,"участник",null,"Магомедов Руслан Гаябекович","Муниципальное бюджетное общеобразовательное учреждение \"Многопрофильный лицей №37\" Нижнекамского муниципального района Республики Татарстан","1 - Техника, технологии и техническое творчество.","1.1 Ручная деревообработка."]
[{"$f":"'[1]Протокол ШЭ ВОШ по предмету ЛИТ'!A25","v":24},"Нуриахметов","Мансур","Ильдарович","м","нет",5,5,9,60,"участник",null,"Магомедов Руслан Гаябекович","Муниципальное бюджетное общеобразовательное учреждение \"Многопрофильный лицей №37\" Нижнекамского муниципального района Республики Татарстан","1 - Техника, технологии и техническое творчество.","1.1 Ручная деревообработка."]
[{"$f":"'[1]Протокол ШЭ ВОШ по предмету ЛИТ'!A26","v":25},"Хокимов","Мухаммаджон","Оятуллоевич","м","нет",5,5,8,60,"участник",null,"Магомедов Руслан Гаябекович","Муниципальное бюджетное общеобразовательное учреждение \"Многопрофильный лицей №37\" Нижнекамского муниципального района Республики Татарстан","1 - Техника, технологии и техническое творчество.","1.1 Ручная деревообработка."]
[{"$f":"'[1]Протокол ШЭ ВОШ по предмету ЛИТ'!A27","v":26},"Пономарев","Дмитрий","Денисович","м","нет",5,5,8,60,"участник",null,"Магомедов Руслан Гаябекович","Муниципальное бюджетное общеобразовательное учреждение \"Многопрофильный лицей №37\" Нижнекамского муниципального района Республики Татарстан","1 - Техника, технологии и техническое творчество.","1.1 Ручная деревообработка."]
[{"$f":"'[1]Протокол ШЭ ВОШ по предмету ЛИТ'!A28","v":27},"Коротаева","Амелия","Вячеславовна","ж","нет",6,6,57,60,"победитель",null,"Габдуллина Ильгизя Ильгизаровна","Муниципальное бюджетное общеобразовательное учреждение \"Многопрофильный лицей №37\" Нижнекамского муниципального района Республики Татарстан","2 - Культура дома, дизайн и технологии","2.1 Ручная обработка швейного изделия или узла"]
[{"$f":"'[1]Протокол ШЭ ВОШ по предмету ЛИТ'!A29","v":28},"Ахметгалеев ","Илья","Игоревич","м","нет",6,6,56,60,"победитель",null,"Магомедов Руслан Гаябекович","Муниципальное бюджетное общеобразовательное учреждение \"Многопрофильный лицей №37\" Нижнекамского муниципального района Республики Татарстан","1 - Техника, технологии и техническое творчество.","1.1 Ручная деревообработка."]
[{"$f":"'[1]Протокол ШЭ ВОШ по предмету ЛИТ'!A30","v":29},"Багаутдинова","Аделя","Ильнаровна","ж","нет",6,6,52,60,"победитель",null,"Габдуллина Ильгизя Ильгизаровна","Муниципальное бюджетное общеобразовательное учреждение \"Многопрофильный лицей №37\" Нижнекамского муниципального района Республики Татарстан","2 - Культура дома, дизайн и технологии","2.1 Ручная обработка швейного изделия или узла"]
[{"$f":"'[1]Протокол ШЭ ВОШ по предмету ЛИТ'!A31","v":30},"Власкина","Полина","Вячеславовна","ж","нет",6,6,51,60,"победитель",null,"Габдуллина Ильгизя Ильгизаровна","Муниципальное бюджетное общеобразовательное учреждение \"Многопрофильный лицей №37\" Нижнекамского муниципального района Республики Татарстан","2 - Культура дома, дизайн и технологии","2.1 Ручная обработка швейного изделия или узла"]
[{"$f":"'[1]Протокол ШЭ ВОШ по предмету ЛИТ'!A32","v":31},"Плеханова","Влада","Дмитриевна","ж","нет",6,6,49,60,"победитель",null,"Габдуллина Ильгизя Ильгизаровна","Муниципальное бюджетное общеобразовательное учреждение \"Многопрофильный лицей №37\" Нижнекамского муниципального района Республики Татарстан","2 - Культура дома, дизайн и технологии","2.1 Ручная обработка швейного изделия или узла"]
[{"$f":"'[1]Протокол ШЭ ВОШ по предмету ЛИТ'!A33","v":32},"Ахметжанова","Лейла","Разумовна","ж","нет",6,6,45,60,"призер",null,"Габдуллина Ильгизя Ильгизаровна","Муниципальное бюджетное общеобразовательное учреждение \"Многопрофильный лицей №37\" Нижнекамского муниципального района Республики Татарстан","2 - Культура дома, дизайн и технологии","2.1 Ручная обработка швейного изделия или узла"]
[{"$f":"'[1]Протокол ШЭ ВОШ по предмету ЛИТ'!A34","v":33},"Дарьина","Мария","Витальевна","ж","нет",6,6,43,60,"призер",null,"Габдуллина Ильгизя Ильгизаровна","Муниципальное бюджетное общеобразовательное учреждение \"Многопрофильный лицей №37\" Нижнекамского муниципального района Республики Татарстан","2 - Культура дома, дизайн и технологии","2.1 Ручная обработка швейного изделия или узла"]
[{"$f":"'[1]Протокол ШЭ ВОШ по предмету ЛИТ'!A35","v":34},"Гатина","Лейла","Ринатовна","ж","нет",6,6,42,60,"призер",null,"Габдуллина Ильгизя Ильгизаровна","Муниципальное бюджетное общеобразовательное учреждение \"Многопрофильный лицей №37\" Нижнекамского муниципального района Республики Татарстан","2 - Культура дома, дизайн и технологии","2.1 Ручная обработка швейного изделия или узла"]
[{"$f":"'[1]Протокол ШЭ ВОШ по предмету ЛИТ'!A36","v":35},"Хусаинова","София","Марселевна","ж","нет",6,6,40,60,"призер",null,"Габдуллина Ильгизя Ильгизаровна","Муниципальное бюджетное общеобразовательное учреждение \"Многопрофильный лицей №37\" Нижнекамского муниципального района Республики Татарстан","2 - Культура дома, дизайн и технологии","2.1 Ручная обработка швейного изделия или узла"]
[{"$f":"'[1]Протокол ШЭ ВОШ по предмету ЛИТ'!A37","v":36},"Ахметов","Азат","Алмазович","м","нет",6,6,39,60,"призер",null,"Магомедов Руслан Гаябекович","Муниципальное бюджетное общеобразовательное учреждение \"Многопрофильный лицей №37\" Нижнекамского муниципального района Республики Татарстан","1 - Техника, технологии и техническое творчество.","1.1 Ручная деревообработка."]
[{"$f":"'[1]Протокол ШЭ ВОШ по предмету ЛИТ'!A38","v":37},"Тагирова","Ралина","Айдаровна","ж","нет",6,6,29,60,"участник",null,"Габдуллина Ильгизя Ильгизаровна","Муниципальное бюджетное общеобразовательное учреждение \"Многопрофильный лицей №37\" Нижнекамского муниципального района Республики Татарстан","2 - Культура дома, дизайн и технологии","2.1 Ручная обработка швейного изделия или узла"]
[{"$f":"'[1]Протокол ШЭ ВОШ по предмету ЛИТ'!A39","v":38},"Фролова","Маргарита","Олеговна","ж","нет",6,6,27,60,"участник",null,"Габдуллина Ильгизя Ильгизаровна","Муниципальное бюджетное общеобразовательное учреждение \"Многопрофильный лицей №37\" Нижнекамского муниципального района Республики Татарстан","2 - Культура дома, дизайн и технологии","2.1 Ручная обработка швейного изделия или узла"]
[{"$f":"'[1]Протокол ШЭ ВОШ по предмету ЛИТ'!A40","v":39},"Суханова","София","Дмитриевна","ж","нет",6,6,27,60,"участник",null,"Габдуллина Ильгизя Ильгизаровна","Муниципальное бюджетное общеобразовательное учреждение \"Многопрофильный лицей №37\" Нижнекамского муниципального района Республики Татарстан","2 - Культура дома, дизайн и технологии","2.1 Ручная обработка швейного изделия или узла"]
[{"$f":"'[1]Протокол ШЭ ВОШ по предмету ЛИТ'!A41","v":40},"Лебедев","Виталий","Андреевич","м","нет",6,6,18,60,"участник",null,"Магомедов Руслан Гаябекович","Муниципальное бюджетное общеобразовательное учреждение \"Многопрофильный лицей №37\" Нижнекамского муниципального района Республики Татарстан","1 - Техника, технологии и техническое творчество.","1.1 Ручная деревообработка."]
[{"$f":"'[1]Протокол ШЭ ВОШ по предмету ЛИТ'!A42","v":41},"Нотфуллин","Ильдар","Алмазович","м","нет",6,6,17,60,"участник",null,"Магомедов Руслан Гаябекович","Муниципальное бюджетное общеобразовательное учреждение \"Многопрофильный лицей №37\" Нижнекамского муниципального района Республики Татарстан","1 - Техника, технологии и техническое творчество.","1.1 Ручная деревообработка."]
[{"$f":"'[1]Протокол ШЭ ВОШ по предмету ЛИТ'!A43","v":42},"Чухнин","Константин","Григорьевич","м","нет",6,6,15,60,"участник",null,"Магомедов Руслан Гаябекович","Муниципальное бюджетное общеобразовательное учреждение \"Многопрофильный лицей №37\" Нижнекамского муниципального района Республики Татарстан","1 - Техника, технологии и техническое творчество.","1.1 Ручная деревообработка."]
[{"$f":"'[1]Протокол ШЭ ВОШ по предмету ЛИТ'!A44","v":43},"Кожевников","Илья","Михайлович","м","нет",6,6,14,60,"участник",null,"Магомедов Руслан Гаябекович","Муниципальное бюджетное общеобразовательное учреждение \"Многопрофильный лицей №37\" Нижнекамского муниципального района Республики Татарстан","1 - Техника, технологии и техническое творчество.","1.1 Ручная деревообработка."]
[{"$f":"'[1]Протокол ШЭ ВОШ по предмету ЛИТ'!A45","v":44},"Артемьев","Даниил","Александрович","м","нет",6,6,9,60,"участник",null,"Магомедов Руслан Гаябекович","Муниципальное бюджетное общеобразовательное учреждение \"Многопрофильный лицей №37\" Нижнекамского муниципального района Республики Татарстан","1 - Техника, технологии и техническое творчество.","1.1 Ручная деревообработка."]
[{"$f":"'[1]Протокол ШЭ ВОШ по предмету ЛИТ'!A46","v":45},"Гаянов","Амин","Альбертович","м","нет",6,6,8,60,"участник",null,"Магомедов Руслан Гаябекович","Муниципальное бюджетное общеобразовательное учреждение \"Многопрофильный лицей №37\" Нижнекамского муниципального района Республики Татарстан","1 - Техника, технологии и техническое творчество.","1.1 Ручная деревообработка."]
[{"$f":"'[1]Протокол ШЭ ВОШ по предмету ЛИТ'!A47","v":46},"Хабибуллин","Демир","Ильдарович","м","нет",6,6,8,60,"участник",null,"Магомедов Руслан Гаябекович","Муниципальное бюджетное общеобразовательное учреждение \"Многопрофильный лицей №37\" Нижнекамского муниципального района Республики Татарстан","1 - Техника, технологии и техническое творчество.","1.1 Ручная деревообработка."]
[{"$f":"'[1]Протокол ШЭ ВОШ по предмету ЛИТ'!A48","v":47},"Миндубаев","Назыйм","Фазылович","м","нет",7,7,82,100,"победитель",null,"Магомедов Руслан Гаябекович","Муниципальное бюджетное общеобразовательное учреждение \"Многопрофильный лицей №37\" Нижнекамского муниципального района Республики Татарстан","1 - Техника, технологии и техническое творчество.","1.1 Механическая деевообработка."]
[{"$f":"'[1]Протокол ШЭ ВОШ по предмету ЛИТ'!A49","v":48},"Шандренкова","Анастасия"," Александровна","ж","нет",7,7,56,100,"призер",null,"Неизвестная Светлана Николаевна","Муниципальное бюджетное общеобразовательное учреждение \"Многопрофильный лицей №37\" Нижнекамского муниципального района Республики Татарстан","2 - Культура дома, дизайн и технологии","2.1 Ручная обработка швейного изделия или узла"]
[{"$f":"'[1]Протокол ШЭ ВОШ по предмету ЛИТ'!A50","v":49},"Бадртдинова","Алина"," Руслановна","ж","нет",7,7,48,100,"участник",null,"Неизвестная Светлана Николаевна","Муниципальное бюджетное общеобразовательное учреждение \"Многопрофильный лицей №37\" Нижнекамского муниципального района Республики Татарстан","2 - Культура дома, дизайн и технологии","2.1 Ручная обработка швейного изделия или узла"]
[{"$f":"'[1]Протокол ШЭ ВОШ по предмету ЛИТ'!A51","v":50},"Сахабиева","Диана","Ильнуровна","ж","нет",7,7,40,100,"участник",null,"Неизвестная Светлана Николаевна","Муниципальное бюджетное общеобразовательное учреждение \"Многопрофильный лицей №37\" Нижнекамского муниципального района Республики Татарстан","2 - Культура дома, дизайн и технологии","2.1 Ручная обработка швейного изделия или узла"]
[{"$f":"'[1]Протокол ШЭ ВОШ по предмету ЛИТ'!A52","v":51},"Ахметова","Ильзира","Радиковна","ж","нет",7,7,38,100,"участник",null,"Неизвестная Светлана Николаевна","Муниципальное бюджетное общеобразовательное учреждение \"Многопрофильный лицей №37\" Нижнекамского муниципального района Республики Татарстан","2 - Культура дома, дизайн и технологии","2.1 Ручная обработка швейного изделия или узла"]
[{"$f":"'[1]Протокол ШЭ ВОШ по предмету ЛИТ'!A53","v":52},"Гордеева","Карина","Викторовна","ж","нет",7,7,38,100,"участник",null,"Неизвестная Светлана Николаевна","Муниципальное бюджетное общеобразовательное учреждение \"Многопрофильный лицей №37\" Нижнекамского муниципального района Республики Татарстан","2 - Культура дома, дизайн и технологии","2.1 Ручная обработка швейного изделия или узла"]
[{"$f":"'[1]Протокол ШЭ ВОШ по предмету ЛИТ'!A54","v":53},"Чекмарева","София","Анатольевна","ж","нет",7,7,36,100,"участник",null,"Неизвестная Светлана Николаевна","Муниципальное бюджетное общеобразовательное учреждение \"Многопрофильный лицей №37\" Нижнекамского муниципального района Республики Татарстан","2 - Культура дома, дизайн и технологии","2.1 Ручная обработка швейного изделия или узла"]
[{"$f":"'[1]Протокол ШЭ ВОШ по предмету ЛИТ'!A55","v":54},"Нагимова","Гузель","Ринатовна","ж","нет",7,7,35,100,"участник",null,"Неизвестная Светлана Николаевна","Муниципальное бюджетное общеобразовательное учреждение \"Многопрофильный лицей №37\" Нижнекамского муниципального района Республики Татарстан","2 - Культура дома, дизайн и технологии","2.1 Ручная обработка швейного изделия или узла"]
[{"$f":"'[1]Протокол ШЭ ВОШ по предмету ЛИТ'!A56","v":55},"Гильманова","Амина","Анваровна","ж","нет",7,7,33,100,"участник",null,"Неизвестная Светлана Николаевна","Муниципальное бюджетное общеобразовательное учреждение \"Многопрофильный лицей №37\" Нижнекамского муниципального района Республики Татарстан","2 - Культура дома, дизайн и технологии","2.1 Ручная обработка швейного изделия или узла"]
[{"$f":"'[1]Протокол ШЭ ВОШ по предмету ЛИТ'!A57","v":56},"Ибрагимов","Азат","Зульфатович","м","нет",7,7,17,100,"участник",null,"Магомедов Руслан Гаябекович","Муниципальное бюджетное общеобразовательное учреждение \"Многопрофильный лицей №37\" Нижнекамского муниципального района Республики Татарстан","1 - Техника, технологии и техническое творчество.","1.1 Механическая деевообработка."]
[{"$f":"'[1]Протокол ШЭ ВОШ по предмету ЛИТ'!A58","v":57},"Казаков","Ярослав"," Александрович","м","нет",7,7,15,100,"участник",null,"Магомедов Руслан Гаябекович","Муниципальное бюджетное общеобразовательное учреждение \"Многопрофильный лицей №37\" Нижнекамского муниципального района Республики Татарстан","1 - Техника, технологии и техническое творчество.","1.1 Механическая деевообработка."]
[{"$f":"'[1]Протокол ШЭ ВОШ по предмету ЛИТ'!A59","v":58},"Гилязов","Илсаф","Ильшатович","м","нет",7,7,12,100,"участник",null,"Магомедов Руслан Гаябекович","Муниципальное бюджетное общеобразовательное учреждение \"Многопрофильный лицей №37\" Нижнекамского муниципального района Республики Татарстан","1 - Техника, технологии и техническое творчество.","1.1 Механическая деевообработка."]
[{"$f":"'[1]Протокол ШЭ ВОШ по предмету ЛИТ'!A60","v":59},"Ваструков ","Дмитрий","Андреевич","м","нет",7,7,12,100,"участник",null,"Магомедов Руслан Гаябекович","Муниципальное бюджетное общеобразовательное учреждение \"Многопрофильный лицей №37\" Нижнекамского муниципального района Республики Татарстан","1 - Техника, технологии и техническое творчество.","1.1 Механическая деевообработка."]
[{"$f":"'[1]Протокол ШЭ ВОШ по предмету ЛИТ'!A61","v":60},"Сафин","Амир","Ренатович","м","нет",7,7,11,100,"участник",null,"Магомедов Руслан Гаябекович","Муниципальное бюджетное общеобразовательное учреждение \"Многопрофильный лицей №37\" Нижнекамского муниципального района Республики Татарстан","1 - Техника, технологии и техническое творчество.","1.1 Механическая деевообработка."]
[{"$f":"'[1]Протокол ШЭ ВОШ по предмету ЛИТ'!A62","v":61},"Каримов","Ранис","Равилевич","М","нет",7,7,10,100,"участник",null,"Магомедов Руслан Гаябекович","Муниципальное бюджетное общеобразовательное учреждение \"Многопрофильный лицей №37\" Нижнекамского муниципального района Республики Татарстан","1 - Техника, технологии и техническое творчество.","1.1 Механическая деевообработка."]
[{"$f":"'[1]Протокол ШЭ ВОШ по предмету ЛИТ'!A63","v":62},"Сабирьянов","Рузаль","Маратович","М","нет",7,7,9,100,"участник",null,"Магомедов Руслан Гаябекович","Муниципальное бюджетное общеобразовательное учреждение \"Многопрофильный лицей №37\" Нижнекамского муниципального района Республики Татарстан","1 - Техника, технологии и техническое творчество.","1.1 Механическая деевообработка."]
[{"$f":"'[1]Протокол ШЭ ВОШ по предмету ЛИТ'!A64","v":63},"Шамаев","Рамазан","Ильсурович","м","нет",7,7,8,100,"участник",null,"Магомедов Руслан Гаябекович","Муниципальное бюджетное общеобразовательное учреждение \"Многопрофильный лицей №37\" Нижнекамского муниципального района Республики Татарстан","1 - Техника, технологии и техническое творчество.","1.1 Механическая деевообработка."]
[{"$f":"'[1]Протокол ШЭ ВОШ по предмету ЛИТ'!A65","v":64},"Сосунова","Виктория","Андреевна","ж","нет",8,8,79,100,"победитель",null,"Неизвестная Светлана Николаевна","Муниципальное бюджетное общеобразовательное учреждение \"Многопрофильный лицей №37\" Нижнекамского муниципального района Республики Татарстан","2 - Культура дома, дизайн и технологии","2.1 Ручная обработка швейного изделия или узла"]
[{"$f":"'[1]Протокол ШЭ ВОШ по предмету ЛИТ'!A66","v":65},"Абдуллин ","Эмир","Эльмарович","м","нет",8,8,78,100,"победитель",null,"Магомедов Руслан Гаябекович","Муниципальное бюджетное общеобразовательное учреждение \"Многопрофильный лицей №37\" Нижнекамского муниципального района Республики Татарстан","1 - Техника, технологии и техническое творчество.","1.1 Механическая деевообработка."]
[{"$f":"'[1]Протокол ШЭ ВОШ по предмету ЛИТ'!A67","v":66},"Мингазова","Рената","Ленаровна","ж","нет",8,8,74,100,"призер",null,"Неизвестная Светлана Николаевна","Муниципальное бюджетное общеобразовательное учреждение \"Многопрофильный лицей №37\" Нижнекамского муниципального района Республики Татарстан","2 - Культура дома, дизайн и технологии","2.1 Ручная обработка швейного изделия или узла"]
[{"$f":"'[1]Протокол ШЭ ВОШ по предмету ЛИТ'!A68","v":67},"Гусманова","Карина","Ильнуровна","ж","нет",8,8,49,100,"участник",null,"Неизвестная Светлана Николаевна","Муниципальное бюджетное общеобразовательное учреждение \"Многопрофильный лицей №37\" Нижнекамского муниципального района Республики Татарстан","2 - Культура дома, дизайн и технологии","2.1 Ручная обработка швейного изделия или узла"]
[{"$f":"'[1]Протокол ШЭ ВОШ по предмету ЛИТ'!A69","v":68},"Маркелова","Ксения","Дмитриевна","ж","нет",8,8,40,100,"участник",null,"Неизвестная Светлана Николаевна","Муниципальное бюджетное общеобразовательное учреждение \"Многопрофильный лицей №37\" Нижнекамского муниципального района Республики Татарстан","2 - Культура дома, дизайн и технологии","2.1 Ручная обработка швейного изделия или узла"]
[{"$f":"'[1]Протокол ШЭ ВОШ по предмету ЛИТ'!A70","v":69},"Байрашова","Дарья","Владимировна","ж","нет",8,8,38,100,"участник",null,"Неизвестная Светлана Николаевна","Муниципальное бюджетное общеобразовательное учреждение \"Многопрофильный лицей №37\" Нижнекамского муниципального района Республики Татарстан","2 - Культура дома, дизайн и технологии","2.1 Ручная обработка швейного изделия или узла"]
[{"$f":"'[1]Протокол ШЭ ВОШ по предмету ЛИТ'!A71","v":70},"Гильманова","Амина"," Анваровна","ж","нет",8,8,38,100,"участник",null,"Неизвестная Светлана Николаевна","Муниципальное бюджетное общеобразовательное учреждение \"Многопрофильный лицей №37\" Нижнекамского муниципального района Республики Татарстан","2 - Культура дома, дизайн и технологии","2.1 Ручная обработка швейного изделия или узла"]
[{"$f":"'[1]Протокол ШЭ ВОШ по предмету ЛИТ'!A72","v":71},"Давлетшина","Диляра","Альбертовна ","ж","нет",8,8,37,100,"участник",null,"Неизвестная Светлана Николаевна","Муниципальное бюджетное общеобразовательное учреждение \"Многопрофильный лицей №37\" Нижнекамского муниципального района Республики Татарстан","2 - Культура дома, дизайн и технологии","2.1 Ручная обработка швейного изделия или узла"]
[{"$f":"'[1]Протокол ШЭ ВОШ по предмету ЛИТ'!A73","v":72},"Каримова","Индира","Ленаровна ","ж","нет",8,8,36,100,"участник",null,"Неизвестная Светлана Николаевна","Муниципальное бюджетное общеобразовательное учреждение \"Многопрофильный лицей №37\" Нижнекамского муниципального района Республики Татарстан","2 - Культура дома, дизайн и технологии","2.1 Ручная обработка швейного изделия или узла"]
[{"$f":"'[1]Протокол ШЭ ВОШ по предмету ЛИТ'!A74","v":73},"Исхакова","Юлия","Фёдоровна","ж","нет",8,8,34,100,"участник",null,"Неизвестная Светлана Николаевна","Муниципальное бюджетное общеобразовательное учреждение \"Многопрофильный лицей №37\" Нижнекамского муниципального района Республики Татарстан","2 - Культура дома, дизайн и технологии","2.1 Ручная обработка швейного изделия или узла"]
[{"$f":"'[1]Протокол ШЭ ВОШ по предмету ЛИТ'!A75","v":74},"Исаева","Яна","Сергеевна","ж","нет",8,8,34,100,"участник",null,"Неизвестная Светлана Николаевна","Муниципальное бюджетное общеобразовательное учреждение \"Многопрофильный лицей №37\" Нижнекамского муниципального района Республики Татарстан","2 - Культура дома, дизайн и технологии","2.1 Ручная обработка швейного изделия или узла"]
[{"$f":"'[1]Протокол ШЭ ВОШ по предмету ЛИТ'!A76","v":75},"Зяббаров","Дамир","Айратович","м","нет",8,8,22,100,"участник",null,"Магомедов Руслан Гаябекович","Муниципальное бюджетное общеобразовательное учреждение \"Многопрофильный лицей №37\" Нижнекамского муниципального района Республики Татарстан","1 - Техника, технологии и техническое творчество.","1.1 Механическая деевообработка."]
[{"$f":"'[1]Протокол ШЭ ВОШ по предмету ЛИТ'!A77","v":76},"Валиуллин","Амир","Фанисович","м","нет",8,8,20,100,"участник",null,"Магомедов Руслан Гаябекович","Муниципальное бюджетное общеобразовательное учреждение \"Многопрофильный лицей №37\" Нижнекамского муниципального района Республики Татарстан","1 - Техника, технологии и техническое творчество.","1.1 Механическая деевообработка."]
[{"$f":"'[1]Протокол ШЭ ВОШ по предмету ЛИТ'!A78","v":77},"Павлов ","Григорий","Иванович","м","нет",8,8,18,100,"участник",null,"Магомедов Руслан Гаябекович","Муниципальное бюджетное общеобразовательное учреждение \"Многопрофильный лицей №37\" Нижнекамского муниципального района Республики Татарстан","1 - Техника, технологии и техническое творчество.","1.1 Механическая деевообработка."]
[{"$f":"'[1]Протокол ШЭ ВОШ по предмету ЛИТ'!A79","v":78},"Гусманов","Руслан","Ильнурович","м","нет",8,8,16,100,"участник",null,"Магомедов Руслан Гаябекович","Муниципальное бюджетное общеобразовательное учреждение \"Многопрофильный лицей №37\" Нижнекамского муниципального района Республики Татарстан","1 - Техника, технологии и техническое творчество.","1.1 Механическая деевообработка."]
[{"$f":"'[1]Протокол ШЭ ВОШ по предмету ЛИТ'!A80","v":79},"Ибрагимов","Рамир","Робертович","м","нет",8,8,16,100,"участник",null,"Магомедов Руслан Гаябекович","Муниципальное бюджетное общеобразовательное учреждение \"Многопрофильный лицей №37\" Нижнекамского муниципального района Республики Татарстан","1 - Техника, технологии и техническое творчество.","1.1 Механическая деевообработка."]
[{"$f":"'[1]Протокол ШЭ ВОШ по предмету ЛИТ'!A81","v":80},"Гайнуллин","Расул","Рустемович","м","нет",8,8,15,100,"участник",null,"Магомедов Руслан Гаябекович","Муниципальное бюджетное общеобразовательное учреждение \"Многопрофильный лицей №37\" Нижнекамского муниципального района Республики Татарстан","1 - Техника, технологии и техническое творчество.","1.1 Механическая деевообработка."]
[{"$f":"'[1]Протокол ШЭ ВОШ по предмету ЛИТ'!A82","v":81},"Ахметов","Динар","Фанилович","м","нет",8,8,14,100,"участник",null,"Магомедов Руслан Гаябекович","Муниципальное бюджетное общеобразовательное учреждение \"Многопрофильный лицей №37\" Нижнекамского муниципального района Республики Татарстан","1 - Техника, технологии и техническое творчество.","1.1 Механическая деевообработка."]
[{"$f":"'[1]Протокол ШЭ ВОШ по предмету ЛИТ'!A83","v":82},"Донской","Дмитрий","Максимович","м","нет",8,8,14,100,"участник",null,"Магомедов Руслан Гаябекович","Муниципальное бюджетное общеобразовательное учреждение \"Многопрофильный лицей №37\" Нижнекамского муниципального района Республики Татарстан","1 - Техника, технологии и техническое творчество.","1.1 Механическая деевообработка."]
[{"$f":"'[1]Протокол ШЭ ВОШ по предмету ЛИТ'!A84","v":83},"Плотников ","Вадим","Юрьевич","м","нет",8,8,8,100,"участник",null,"Магомедов Руслан Гаябекович","Муниципальное бюджетное общеобразовательное учреждение \"Многопрофильный лицей №37\" Нижнекамского муниципального района Республики Татарстан","1 - Техника, технологии и техническое творчество.","1.1 Механическая деевообработка."]
[{"$f":"'[1]Протокол ШЭ ВОШ по предмету ЛИТ'!A85","v":84},"Ульданов","Рафиль","Ниязович","м","нет",8,8,8,100,"участник",null,"Магомедов Руслан Гаябекович","Муниципальное бюджетное общеобразовательное учреждение \"Многопрофильный лицей №37\" Нижнекамского муниципального района Республики Татарстан","1 - Техника, технологии и техническое творчество.","1.1 Механическая деевообработка."]
[{"$f":"'[1]Протокол ШЭ ВОШ по предмету ЛИТ'!A86","v":85},"Мингалимов","Раиль","Рамилевич","м","нет",11,11,25,100,"участник",null,"Магомедов Руслан Гаябекович","Муниципальное бюджетное общеобразовательное учреждение \"Многопрофильный лицей №37\" Нижнекамского муниципального района Республики Татарстан","1 - Техника, технологии и техническое творчество.","1.1 Механическая деевообработка."]

{"sheet":"data","index":1,"n_rows":25,"n_cols":10,"rows_kept":25}
[{"$nulls":6},"1 - Техника, технология и техническое творчество","2 - Культура дома, дизайн и технологии","3 - Робототехника","4 - Информационная безопасность"]
["1 - Техника, технологии и техническое творчество","1.1  Практика по ручной деревообработке",{"$nulls":4},"1.1 Практика по ручной деревообработке","2.1 Ручная обработка швейного изделия или узла","3.1 Робототехника","4.1 Не предусмотрена"]
["2 - Культура дома, дизайн и технологии","1.2 Практика по механической деревообработке",{"$nulls":4},"1.2 Практика по механической деревообработке","2.2 Механическая обработка швейного изделия или узла + Моделирование"]
["3 - Робототехника","1.3 Практика по ручной металлообработке",{"$nulls":4},"1.3 Практика по ручной металлообработке","2.3 Обработка швейного изделия или узла на швейно-вышивальном оборудовании + Моделирование"]
["4 - Информационная безопасность","1.4 Практика по механической металлообработке",{"$nulls":4},"1.4 Практика по механической металлообработке","2.4 3D-моделирование и печать"]
[null,"1.5 Электрорадиотехника",{"$nulls":4},"1.5 Электрорадиотехника","2.5 Практика по работе на лазерно-гравировальном станке"]
[null,"1.6 3D-моделирование и печать",{"$nulls":4},"1.6 3D-моделирование и печать","2.6 Промышленный дизайн"]
[null,"1.7 Практика по работе на лазерно-гравировальном станке",{"$nulls":4},"1.7 Практика по работе на лазерно-гравировальном станке"]
[null,"1.8 Промышленный дизайн",{"$nulls":4},"1.8 Промышленный дизайн"]
[null,"2.1 Ручная обработка швейного изделия или узла"]
[null,"2.2 Механическая обработка швейного изделия или узла + Моделирование",{"$nulls":6},"3.1 Робототехника","4.1 Не предусмотрена"]
[null,"2.3 Обработка швейного изделия или узла на швейно-вышивальном оборудовании + Моделирование"]
[null,"2.4 3D-моделирование и печать"]
[null,"2.5 Практика по работе на лазерно-гравировальном станке"]
[null,"2.6 Промышленный дизайн"]
[null,"3.1 Робототехника"]
[null,"4.1 Не предусмотрена"]
[]
[]
[]
[]
[]
["участник"]
["призер",null,"да","да",null,"м"]
["победитель",null,null,"нет",null,"ж"]